bitfinex/quotes_BTCUSD_20240821
["timestamp","ask_amount","ask_price","bid_price","bid_amount"]
[1724232040251,0.0812,59264.0,59246.0,0.16400298]
[1724232040669,0.001,59254.0,59246.0,0.16400298]
[1724232041751,0.002,59254.0,59246.0,0.16400298]
[1724232041955,0.001,59254.0,59247.0,0.03423808]
[1724232042137,0.02645849,59263.0,59248.0,0.16400298]
[1724232042400,0.001,59254.0,59248.0,0.16400298]
[1724232042607,0.001,59254.0,59247.0,0.03423808]
[1724232042851,0.001,59254.0,59246.0,0.001]
[1724232042852,0.0814,59253.0,59246.0,0.001]
[1724232043053,0.16400298,59252.0,59246.0,0.006]
[1724232043267,0.16400298,59252.0,59246.0,0.005]
[1724232043268,0.18700298,59252.0,59246.0,0.005]
[1724232043473,0.18700298,59252.0,59233.0,0.0657]
[1724232043686,0.18700298,59252.0,59234.0,0.01526]
[1724232043899,0.18700298,59252.0,59247.0,0.005]
[1724232044558,0.07854071,59251.0,59247.0,0.005]
[1724232044776,0.19619337,59250.0,59247.0,0.005]
[1724232045020,0.10919039,59249.0,59226.0,1.13055164]
[1724232045237,0.2114896,59248.0,59228.0,0.16397878]
[1724232045479,0.2114896,59248.0,59228.0,0.19027553]
[1724232045715,0.02646778,59244.0,59229.0,0.02193872]
[1724232045921,0.19619337,59243.0,59230.0,0.15656712]
[1724232046135,0.00919039,59242.0,59230.0,0.15656712]
[1724232046346,0.19619337,59241.0,59231.0,0.02196306]
[1724232046551,0.00919039,59240.0,59231.0,0.02196306]
[1724232046753,0.17319337,59239.0,59231.0,0.08113416]
[1724232046957,0.0664,59238.0,59231.0,0.08113416]
[1724232047163,0.0664,59238.0,59231.0,0.02196306]
[1724232047592,0.0664,59238.0,59224.0,0.0654]
[1724232047593,0.0776,59237.0,59224.0,0.0654]
[1724232047803,0.0776,59237.0,59232.0,0.02196282]
[1724232048226,0.0776,59237.0,59224.0,0.0654]
[1724232048434,0.0776,59237.0,59233.0,0.02196259]
[1724232048637,0.0776,59237.0,59225.0,0.16397878]
[1724232049066,0.0776,59237.0,59226.0,0.02196423]
[1724232049268,0.0776,59237.0,59232.0,0.001]
[1724232049685,0.0776,59237.0,59225.0,0.16397878]
[1724232049897,0.0776,59237.0,59227.0,0.08497117]
[1724232050325,0.0776,59237.0,59228.0,0.02196376]
[1724232050544,0.023,59241.0,59228.0,0.02196376]
[1724232050764,0.16400298,59240.0,59228.0,0.02196376]
[1724232050977,0.16400298,59240.0,59229.0,0.01079349]
[1724232051404,0.1015,59242.0,59229.0,0.03275702]
[1724232051405,0.0785,59242.0,59229.0,0.03275702]
[1724232051635,0.0785,59242.0,59230.0,0.057]
[1724232051636,0.24250298,59242.0,59230.0,0.057]
[1724232051845,0.24250298,59242.0,59232.0,0.001]
[1724232052053,0.08936912,59248.0,59231.0,0.03945406]
[1724232052054,0.0818,59247.0,59231.0,0.03945406]
[1724232052264,0.003,59240.0,59233.0,0.02198077]
[1724232052478,0.003,59240.0,59234.0,0.012983]
[1724232052708,0.0818,59247.0,59234.0,0.03496353]
[1724232052923,0.009,59242.0,59235.0,0.0615]
[1724232053153,0.009,59242.0,59235.0,0.0834803]
[1724232053361,0.0818,59247.0,59236.0,0.00964633]
[1724232053804,0.001,59240.0,59236.0,0.0316264]
[1724232054012,0.001,59240.0,59236.0,0.02198007]
[1724232054232,0.0804,59239.0,59227.0,0.0656]
[1724232054435,0.0804,59239.0,59237.0,0.02202145]
[1724232054639,0.0804,59239.0,59228.0,0.12526]
[1724232054847,0.001,59240.0,59238.0,0.02202122]
[1724232055077,0.001,59240.0,59232.0,0.03337627]
[1724232055290,0.001,59240.0,59239.0,0.02202098]
[1724232055512,0.001,59240.0,59235.0,0.057]
[1724232055513,0.0804,59245.0,59235.0,0.057]
[1724232055723,0.0804,59245.0,59239.0,0.02202098]
[1724232055932,0.0804,59245.0,59237.0,0.001]
[1724232056139,0.0804,59245.0,59240.0,0.02202075]
[1724232056362,0.0804,59245.0,59236.0,0.00903763]
[1724232056567,0.0804,59245.0,59238.0,0.02202122]
[1724232056773,0.0824,59245.0,59241.0,0.02202052]
[1724232056983,0.0824,59245.0,59239.0,0.00880588]
[1724232057186,0.0824,59245.0,59239.0,0.03082686]
[1724232057390,0.0824,59245.0,59239.0,0.00880588]
[1724232057627,0.0824,59245.0,59240.0,0.02202075]
[1724232057836,0.00918656,59244.0,59232.0,0.03]
[1724232058063,0.0834,59245.0,59241.0,0.02202052]
[1724232058247,0.00918643,59244.0,59231.0,0.057]
[1724232058456,0.00918643,59243.0,59242.0,0.02202028]
[1724232058803,0.0844,59245.0,59232.0,0.018226]
[1724232059008,0.00918661,59244.0,59243.0,0.0644]
[1724232059215,0.003,59245.0,59243.0,0.07304203]
[1724232059425,0.001,59245.0,59243.0,0.07304203]
[1724232059631,0.001,59245.0,59243.0,0.09506208]
[1724232059847,0.003,59245.0,59243.0,0.09506208]
[1724232060252,0.003,59245.0,59243.0,0.09843754]
[1724232060504,0.003,59245.0,59244.0,0.01854375]
[1724232060917,0.003,59245.0,59244.0,0.04057058]
[1724232061115,0.000823,59247.0,59244.0,0.04057058]
[1724232061535,0.000823,59247.0,59245.0,0.00337546]
[1724232061740,0.000823,59247.0,59246.0,0.16400298]
[1724232061944,0.000823,59247.0,59246.0,0.21982843]
[1724232062274,0.001823,59247.0,59246.0,0.21982843]
[1724232062677,0.000823,59247.0,59246.0,0.21982843]
[1724232062905,0.001823,59247.0,59246.0,0.22420362]
[1724232063101,0.002823,59247.0,59246.0,0.22620362]
[1724232063927,0.002823,59247.0,59246.0,0.22282843]
[1724232064147,0.002823,59247.0,59246.0,0.22382843]
[1724232064597,0.002823,59247.0,59246.0,0.38282843]
[1724232065032,1e-08,59247.0,59246.0,0.37982843]
[1724232065992,1e-08,59247.0,59246.0,0.38082843]
[1724232066236,1e-08,59247.0,59246.0,0.43500113]
[1724232066755,1e-08,59247.0,59246.0,0.43519985]
[1724232067167,0.0802,59267.0,59253.0,0.03]
[1724232067376,0.0802,59267.0,59253.0,0.19400298]
[1724232067594,0.0802,59267.0,59253.0,0.29795799]
[1724232067830,0.0802,59267.0,59253.0,0.31980013]
[1724232068275,0.0802,59267.0,59253.0,0.32280013]
[1724232068485,0.0802,59267.0,59253.0,0.38100013]
[1724232068704,0.001823,59254.0,59253.0,0.45200013]
[1724232068907,0.001823,59254.0,59253.0,0.55400013]
[1724232069132,0.001823,59254.0,59253.0,0.60436269]
[1724232069365,0.002823,59254.0,59253.0,0.61136269]
[1724232069574,0.002823,59254.0,59253.0,0.56100013]
[1724232069809,0.001823,59254.0,59253.0,0.55200013]
[1724232070242,0.002823,59254.0,59253.0,0.56600013]
[1724232070474,0.001823,59254.0,59253.0,0.55700013]
[1724232070689,0.001823,59254.0,59253.0,0.57100013]
[1724232071796,0.001823,59254.0,59253.0,0.86650013]
[1724232073541,0.001823,59254.0,59253.0,0.56600013]
[1724232073757,0.001823,59254.0,59253.0,0.28379715]
[1724232073966,0.001823,59254.0,59253.0,0.17984214]
[1724232074174,0.001823,59254.0,59253.0,0.24384512]
[1724232074380,0.001823,59254.0,59253.0,0.34721968]
[1724232074595,0.001823,59254.0,59253.0,0.64371968]
[1724232074809,0.001823,59254.0,59253.0,0.70849165]
[1724232075004,0.001823,59254.0,59253.0,0.71049165]
[1724232075205,0.001823,59254.0,59253.0,0.70749165]
[1724232075414,0.001823,59254.0,59253.0,0.70849165]
[1724232075648,0.001823,59254.0,59253.0,0.71049165]
[1724232075854,0.001823,59254.0,59253.0,0.70911709]
[1724232077209,0.001823,59254.0,59253.0,0.76611709]
[1724232077425,0.001823,59254.0,59253.0,1.1891955]
[1724232077646,0.001823,59254.0,59253.0,2.6891955]
[1724232077861,0.001823,59254.0,59253.0,2.32931709]
[1724232078051,0.001823,59254.0,59253.0,2.52038509]
[1724232078395,0.001823,59254.0,59253.0,2.50663909]
[1724232078781,0.001823,59254.0,59253.0,2.58211221]
[1724232079189,0.001823,59254.0,59253.0,2.50663909]
[1724232079442,0.001823,59254.0,59253.0,2.55696457]
[1724232079650,0.001823,59254.0,59253.0,2.50663909]
[1724232079847,0.08,59273.0,59253.0,2.50663909]
[1724232079848,0.08,59273.0,59267.0,0.03]
[1724232080050,0.08,59273.0,59268.0,0.16737701]
[1724232080256,0.08715452,59281.0,59268.0,0.16737701]
[1724232080257,0.0769,59280.0,59269.0,0.11042241]
[1724232080464,0.0769,59280.0,59269.0,0.29615494]
[1724232081307,0.0769,59280.0,59270.0,0.16737689]
[1724232081517,0.0769,59280.0,59274.0,0.03]
[1724232081721,0.10684907,59287.0,59275.0,0.16400298]
[1724232081928,0.10684907,59287.0,59281.0,0.03]
[1724232082126,0.10684907,59287.0,59282.0,0.16400298]
[1724232082127,0.0804,59287.0,59282.0,0.16400298]
[1724232082337,0.0804,59287.0,59282.0,0.18557558]
[1724232082557,0.0804,59287.0,59282.0,0.04313016]
[1724232082758,0.0804,59287.0,59282.0,0.0215726]
[1724232083163,0.0804,59287.0,59275.0,0.031]
[1724232083370,0.0804,59287.0,59282.0,0.0215726]
[1724232083584,0.0804,59287.0,59276.0,0.16400298]
[1724232084233,0.0657,59292.0,59275.0,0.031]
[1724232084234,0.0818,59282.0,59277.0,0.02157377]
[1724232084687,0.061,59281.0,59272.0,0.1]
[1724232084889,0.061,59281.0,59278.0,0.02157353]
[1724232085090,0.061,59281.0,59272.0,0.19884465]
[1724232085299,0.061,59281.0,59279.0,0.0215733]
[1724232085506,0.061,59281.0,59277.0,0.001]
[1724232085710,0.061,59281.0,59273.0,0.11042241]
[1724232085963,0.061,59281.0,59278.0,0.02157353]
[1724232086169,0.061,59281.0,59278.0,0.004]
[1724232086369,0.061,59281.0,59279.0,0.0215733]
[1724232087461,0.0828,59286.0,59280.0,0.16400298]
[1724232087671,0.0828,59286.0,59281.0,0.02245763]
[1724232088084,0.0828,59286.0,59281.0,0.04403046]
[1724232088292,0.0828,59286.0,59281.0,0.20803344]
[1724232089331,0.0828,59286.0,59281.0,0.21303344]
[1724232090165,0.0828,59286.0,59282.0,0.00337332]
[1724232090375,0.0828,59286.0,59282.0,0.02174068]
[1724232090580,0.0828,59286.0,59282.0,0.04327023]
[1724232091207,0.0828,59286.0,59282.0,0.20727321]
[1724232091839,0.0828,59286.0,59282.0,0.23027321]
[1724232092942,0.0644,59292.0,59282.0,0.23027321]
[1724232093159,0.0346666,59297.0,59282.0,0.23027321]
[1724232093160,0.0819,59291.0,59282.0,0.23027321]
[1724232093591,0.0819,59291.0,59282.0,0.21827321]
[1724232093802,0.0819,59291.0,59282.0,0.20727321]
[1724232094020,0.0819,59291.0,59282.0,0.21127321]
[1724232094234,0.0819,59291.0,59282.0,0.21027321]
[1724232094448,0.0819,59291.0,59282.0,0.22127321]
[1724232094708,0.0819,59291.0,59282.0,0.21827321]
[1724232094918,0.0819,59291.0,59282.0,0.21627321]
[1724232095130,0.0819,59291.0,59282.0,0.22627321]
[1724232097496,1e-08,59283.0,59282.0,0.21727321]
[1724232097913,1e-08,59283.0,59282.0,0.20727321]
[1724232098811,1e-08,59283.0,59282.0,0.21327321]
[1724232100286,1e-08,59283.0,59282.0,0.20727321]
[1724232100499,1e-08,59283.0,59282.0,0.2106463]
[1724232100707,1e-08,59283.0,59282.0,0.2156463]
[1724232101347,1e-08,59283.0,59282.0,0.2206463]
[1724232102440,1e-08,59283.0,59282.0,0.27180675]
[1724232102659,0.0774,59295.0,59286.0,0.03]
[1724232102858,0.0774,59295.0,59287.0,0.16400298]
[1724232103093,0.0774,59295.0,59287.0,0.18543355]
[1724232103517,0.0774,59295.0,59287.0,0.23569926]
[1724232103746,0.0774,59295.0,59287.0,0.23907198]
[1724232103959,0.0774,59295.0,59288.0,0.09486591]
[1724232104170,0.0774,59295.0,59289.0,0.16400298]
[1724232104375,0.0774,59295.0,59289.0,0.23569879]
[1724232105422,0.0774,59295.0,59290.0,0.05026571]
[1724232105639,0.0774,59295.0,59291.0,0.16400298]
[1724232105846,0.0774,59295.0,59292.0,0.12016174]
[1724232106061,0.078222,59295.0,59293.0,0.16400298]
[1724232106259,0.078222,59295.0,59293.0,0.18543215]
[1724232109888,0.078222,59295.0,59293.0,0.02142917]
[1724232110144,0.078222,59295.0,59292.0,0.12016174]
[1724232110352,0.078222,59295.0,59294.0,0.02137075]
[1724232110560,0.08740615,59295.0,59293.0,0.02137098]
[1724232110772,0.078222,59295.0,59294.0,0.02137075]
[1724232110985,0.08740638,59295.0,59294.0,0.02137075]
[1724232111241,0.08740638,59295.0,59286.0,0.05026571]
[1724232111457,0.078222,59295.0,59294.0,0.02137075]
[1724232111667,0.078222,59295.0,59288.0,0.00337298]
[1724232111874,0.00918442,59294.0,59289.0,0.16400298]
[1724232112086,0.00918442,59294.0,59290.0,0.0324838]
[1724232112301,0.00918442,59294.0,59290.0,0.0358566]
[1724232112732,0.00918442,59294.0,59290.0,0.19648678]
[1724232114417,0.00918442,59294.0,59291.0,0.16737575]
[1724232114620,0.078222,59295.0,59291.0,0.16737575]
[1724232114829,0.078222,59295.0,59292.0,0.01998596]
[1724232115039,0.078222,59295.0,59292.0,0.18398894]
[1724232115258,0.078222,59295.0,59293.0,0.16737568]
[1724232115457,0.000822,59295.0,59293.0,0.16737568]
[1724232116907,0.000822,59295.0,59293.0,0.21775013]
[1724232117142,0.000822,59295.0,59294.0,0.13628531]
[1724232117348,0.000822,59295.0,59294.0,0.30028829]
[1724232119268,0.1467,59294.0,59293.0,0.05037445]
[1724232119495,0.0819,59293.0,59286.0,0.05037445]
[1724232119715,0.07398591,59294.0,59284.0,0.07556167]
[1724232119716,0.0758,59291.0,59284.0,0.21437743]
[1724232119942,0.00918591,59290.0,59285.0,0.05037445]
[1724232120149,0.0758,59289.0,59285.0,0.05037445]
[1724232120368,0.0758,59289.0,59285.0,0.14114003]
[1724232120574,0.0758,59289.0,59286.0,0.16737626]
[1724232120780,0.0758,59289.0,59286.0,0.21775071]
[1724232120990,0.0758,59294.0,59287.0,0.05037445]
[1724232121199,0.00918603,59293.0,59289.0,0.05043203]
[1724232121449,0.06,59293.0,59289.0,0.05043203]
[1724232121657,0.06,59291.0,59285.0,0.05043203]
[1724232121863,0.06,59291.0,59282.0,0.07556167]
[1724232121864,0.0808,59288.0,59286.0,0.005]
[1724232122072,0.08507261,59287.0,59286.0,0.005]
[1724232122274,0.0808,59286.0,59275.0,0.05043203]
[1724232122481,0.0808,59286.0,59274.0,0.07556167]
[1724232122482,0.0808,59284.0,59276.0,0.07310629]
[1724232122687,0.0765,59282.0,59276.0,0.04047911]
[1724232122898,0.0765,59280.0,59276.0,0.04047911]
[1724232123103,0.0765,59278.0,59276.0,0.09091114]
[1724232123529,0.07238299,59277.0,59276.0,0.01780485]
[1724232123742,0.14888299,59277.0,59276.0,0.01780485]
[1724232123987,0.14888299,59277.0,59270.0,1.59298367]
[1724232123988,0.0763,59276.0,59270.0,1.59298367]
[1724232124203,0.00918299,59275.0,59271.0,0.16397878]
[1724232124408,0.08548299,59274.0,59271.0,0.16397878]
[1724232124624,0.00918299,59273.0,59271.0,0.16397878]
[1724232124834,0.0763,59274.0,59272.0,0.08497117]
[1724232125038,0.00918158,59273.0,59272.0,0.08497117]
[1724232125289,0.00918158,59273.0,59270.0,1.54255164]
[1724232125290,0.08498158,59273.0,59270.0,1.54255164]
[1724232125499,0.0758,59273.0,59270.0,1.54255164]
[1724232125915,0.0758,59273.0,59271.0,0.01787554]
[1724232126141,0.0758,59273.0,59272.0,0.16109245]
[1724232126386,0.0758,59273.0,59272.0,0.17896776]
[1724232126640,0.0758,59273.0,59272.0,0.01787531]
[1724232127053,0.0758,59273.0,59270.0,1.54255164]
[1724232127264,0.0758,59273.0,59272.0,0.01787531]
[1724232127689,0.0758,59273.0,59272.0,0.05047507]
[1724232127907,0.0758,59273.0,59272.0,0.09107195]
[1724232128113,0.0758,59273.0,59272.0,0.04059688]
[1724232128538,0.0758,59273.0,59272.0,0.11634286]
[1724232128742,0.0758,59273.0,59272.0,0.49043864]
[1724232128949,0.0826,59281.0,59272.0,0.49043864]
[1724232129212,0.0826,59281.0,59274.0,0.05046909]
[1724232129408,0.0826,59281.0,59275.0,0.16400298]
[1724232129614,0.0826,59281.0,59275.0,0.18198539]
[1724232129820,0.0826,59281.0,59275.0,0.23245448]
[1724232130511,0.0793,59287.0,59279.0,0.03]
[1724232130725,0.0793,59287.0,59284.0,0.050456]
[1724232131145,0.0793,59287.0,59285.0,0.01798861]
[1724232131574,0.0793,59287.0,59280.0,0.050456]
[1724232131848,0.0793,59287.0,59286.0,0.01798838]
[1724232132058,0.0793,59287.0,59280.0,0.09097057]
[1724232132059,0.0793,59287.0,59280.0,0.050456]
[1724232132271,0.0793,59287.0,59281.0,0.01798954]
[1724232132476,0.0793,59287.0,59280.0,0.050456]
[1724232132923,0.0793,59287.0,59281.0,0.01798954]
[1724232133155,0.0793,59287.0,59282.0,0.01441915]
[1724232133569,0.0793,59287.0,59283.0,0.01798908]
[1724232134006,0.0793,59287.0,59284.0,0.21783218]
[1724232134222,0.0793,59287.0,59284.0,0.23244782]
[1724232134444,0.0794,59290.0,59286.0,0.050456]
[1724232135117,0.0794,59290.0,59287.0,0.23582021]
[1724232135349,0.0794,59290.0,59288.0,0.050456]
[1724232135579,0.02644646,59294.0,59289.0,0.21313114]
[1724232135808,0.02644646,59294.0,59289.0,0.28157482]
[1724232136259,0.079122,59295.0,59289.0,0.23111882]
[1724232139616,0.079122,59295.0,59290.0,0.05382884]
[1724232139617,0.000822,59295.0,59290.0,0.05382884]
[1724232139828,0.000822,59295.0,59294.0,0.0662]
[1724232140032,0.000822,59295.0,59294.0,0.28403146]
[1724232140247,0.000822,59295.0,59294.0,0.25156197]
[1724232140466,0.000822,59295.0,59294.0,0.32393547]
[1724232140672,0.000822,59295.0,59294.0,0.69788499]
[1724232140932,0.000822,59295.0,59294.0,0.76756719]
[1724232141148,0.00822,59305.0,59296.0,0.201]
[1724232141358,0.00822,59305.0,59304.0,0.10085412]
[1724232141582,0.00822,59305.0,59304.0,0.68981233]
[1724232141801,0.00822,59305.0,59304.0,0.70767909]
[1724232142490,0.00822,59305.0,59304.0,0.6823869]
[1724232143134,0.00822,59305.0,59304.0,0.20766192]
[1724232143349,0.00822,59305.0,59304.0,0.21103358]
[1724232143590,0.00822,59305.0,59304.0,0.58688891]
[1724232143793,0.00822,59305.0,59304.0,0.58988891]
[1724232144004,0.00822,59305.0,59304.0,0.58488891]
[1724232144435,0.00822,59305.0,59304.0,0.68004793]
[1724232144908,0.00822,59305.0,59304.0,0.23066192]
[1724232146442,0.00822,59305.0,59304.0,0.06665894]
[1724232146654,0.00822,59305.0,59304.0,0.04086676]
[1724232147961,0.00822,59305.0,59304.0,0.20486974]
[1724232148385,0.00822,59305.0,59304.0,0.04086676]
[1724232148605,0.07292,59305.0,59304.0,0.04086676]
[1724232149049,0.15182,59305.0,59304.0,0.04086676]
[1724232150787,0.15182,59305.0,59304.0,0.02986676]
[1724232150984,0.15182,59305.0,59304.0,0.01786676]
[1724232151190,0.15182,59305.0,59304.0,0.004]
[1724232151365,0.15182,59305.0,59304.0,0.008]
[1724232151982,0.08712,59305.0,59304.0,0.008]
[1724232154177,0.11355848,59305.0,59304.0,0.008]
[1724232154794,0.11355848,59305.0,59304.0,0.004]
[1724232154998,0.11355848,59305.0,59294.0,0.5467822]
[1724232155320,0.0821,59304.0,59295.0,0.07284872]
[1724232155721,0.0821,59304.0,59295.0,0.2368517]
[1724232155926,0.0821,59304.0,59295.0,0.24022435]
[1724232156981,0.0821,59304.0,59295.0,0.2368517]
[1724232157185,0.0821,59304.0,59296.0,0.07139517]
[1724232157680,0.0821,59304.0,59297.0,0.01817003]
[1724232159154,0.00918376,59303.0,59297.0,0.01817003]
[1724232159354,0.0821,59304.0,59297.0,0.01817003]
[1724232160164,0.00918379,59303.0,59297.0,0.01817003]
[1724232160423,0.00918379,59302.0,59298.0,0.05666652]
[1724232160643,0.0821,59304.0,59298.0,0.2853695]
[1724232160850,0.0821,59304.0,59299.0,0.08178299]
[1724232161055,0.0821,59304.0,59300.0,0.16400298]
[1724232161513,0.00822,59305.0,59301.0,0.02154131]
[1724232161735,0.00822,59305.0,59301.0,0.18554429]
[1724232161946,0.00822,59305.0,59302.0,0.16400298]
[1724232162150,0.00822,59305.0,59303.0,0.02795048]
[1724232162351,0.00822,59305.0,59304.0,0.16400298]
[1724232162566,0.00822,59305.0,59304.0,0.18217418]
[1724232164549,0.00822,59305.0,59304.0,0.18554601]
[1724232164745,0.00822,59305.0,59304.0,0.18317418]
[1724232164948,0.00822,59305.0,59304.0,0.28820417]
[1724232167903,0.00822,59305.0,59304.0,0.18317418]
[1724232168954,0.15682,59305.0,59304.0,0.0191712]
[1724232169210,0.16601156,59305.0,59304.0,0.0191712]
[1724232169532,0.16601156,59305.0,59304.0,0.001]
[1724232170895,0.09961156,59305.0,59297.0,0.0009031]
[1724232171132,0.09042,59305.0,59298.0,0.22180329]
[1724232171285,0.09042,59305.0,59298.0,0.2399211]
[1724232171484,0.09042,59305.0,59299.0,0.0033721]
[1724232171706,0.09042,59305.0,59300.0,0.19645508]
[1724232171915,0.09042,59305.0,59301.0,0.00337213]
[1724232172121,0.09042,59305.0,59301.0,0.18214854]
[1724232174343,0.00919161,59304.0,59301.0,0.18214854]
[1724232174553,0.09042,59305.0,59301.0,0.18214854]
[1724232174754,0.00919161,59304.0,59302.0,0.03982127]
[1724232174993,0.09042,59305.0,59302.0,0.05795412]
[1724232175203,0.00919161,59304.0,59302.0,0.05795412]
[1724232175442,0.09042,59305.0,59302.0,0.05795412]
[1724232175612,0.00919146,59304.0,59302.0,0.05795412]
[1724232175819,0.09042,59305.0,59302.0,0.01813285]
[1724232176021,0.0821,59303.0,59302.0,0.01813285]
[1724232176233,0.09129126,59303.0,59302.0,0.01813285]
[1724232176428,0.09129126,59303.0,59302.0,0.002]
[1724232176852,0.09129126,59303.0,59302.0,0.02013285]
[1724232177058,0.09129126,59303.0,59302.0,0.002]
[1724232177257,0.10658578,59303.0,59302.0,0.002]
[1724232177682,0.09129126,59303.0,59302.0,0.002]
[1724232177895,0.09129126,59303.0,59297.0,0.0009031]
[1724232178104,0.09129126,59303.0,59298.0,0.06040719]
[1724232178105,0.00919126,59302.0,59298.0,0.06040719]
[1724232178292,0.00919126,59301.0,59298.0,0.06040719]
[1724232178470,0.00919126,59300.0,59298.0,0.06040719]
[1724232178670,0.00919126,59299.0,59298.0,0.06040719]
[1724232179279,0.00919126,59299.0,59298.0,0.11083471]
[1724232179519,0.0821,59303.0,59298.0,0.43535907]
[1724232179715,0.0821,59303.0,59302.0,0.05048363]
[1724232179873,0.09129124,59303.0,59302.0,0.13323747]
[1724232181420,0.09129124,59303.0,59302.0,0.08275384]
[1724232181667,0.09129124,59303.0,59302.0,0.08475384]
[1724232182411,0.09129132,59303.0,59302.0,0.16147929]
[1724232182696,0.09129132,59303.0,59302.0,0.08575384]
[1724232182969,0.09129132,59303.0,59302.0,0.45264887]
[1724232182970,0.09129135,59303.0,59302.0,0.45264887]
[1724232183414,0.09129135,59303.0,59302.0,0.37692342]
[1724232183615,0.00919135,59303.0,59302.0,0.45268803]
[1724232183816,0.00919135,59303.0,59302.0,0.54310146]
[1724232184262,0.00919135,59303.0,59302.0,0.46733685]
[1724232184438,0.00919135,59303.0,59302.0,0.56836858]
[1724232185078,0.00919135,59303.0,59302.0,0.56736858]
[1724232185915,0.00919135,59303.0,59302.0,0.58853204]
[1724232186506,0.00919135,59303.0,59302.0,0.48749629]
[1724232186704,0.00919135,59303.0,59302.0,0.65149927]
[1724232186902,0.00822,59305.0,59302.0,0.65149927]
[1724232187129,0.00822,59305.0,59304.0,0.07579194]
[1724232187352,0.00822,59305.0,59304.0,0.61371432]
[1724232187565,0.01741151,59305.0,59304.0,0.63187731]
[1724232187787,0.01741151,59305.0,59304.0,0.6571413]
[1724232188042,0.01741151,59305.0,59304.0,0.72540072]
[1724232188431,0.01741151,59305.0,59304.0,0.65059925]
[1724232189505,0.01741151,59305.0,59304.0,0.7516724]
[1724232190134,0.00822,59305.0,59304.0,0.7516724]
[1724232190354,0.01741139,59305.0,59304.0,0.7516724]
[1724232193212,0.01741139,59305.0,59304.0,0.65059925]
[1724232194195,0.00822,59305.0,59304.0,0.65059925]
[1724232197824,0.00822,59305.0,59304.0,0.65057975]
[1724232198777,0.00768231,59305.0,59304.0,0.65057975]
[1724232199988,0.00747934,59305.0,59304.0,0.65057975]
[1724232207094,0.00747934,59305.0,59304.0,1.17401761]
[1724232207314,0.00747934,59305.0,59304.0,0.65057975]
[1724232209779,0.00825,59309.0,59304.0,1.20399156]
[1724232209986,0.00825,59309.0,59306.0,0.15168663]
[1724232210245,0.00825,59309.0,59307.0,0.5412699]
[1724232210453,0.00825,59309.0,59308.0,0.37389524]
[1724232210655,0.00825,59309.0,59308.0,0.53789822]
[1724232212615,0.00825,59309.0,59308.0,0.64412313]
[1724232213515,0.00825,59309.0,59308.0,0.64408564]
[1724232214100,0.00825,59309.0,59308.0,0.27022789]
[1724232214314,0.00825,59309.0,59308.0,0.18207303]
[1724232215650,0.00825,59309.0,59308.0,0.18544471]
[1724232218200,0.00825,59309.0,59308.0,0.18207303]
[1724232218574,0.00825,59309.0,59308.0,0.30007303]
[1724232218765,0.00825,59309.0,59308.0,0.30344464]
[1724232218964,0.00825,59309.0,59308.0,0.34322941]
[1724232220037,0.00825,59309.0,59308.0,0.3518578]
[1724232220191,0.00825,59309.0,59308.0,0.3588578]
[1724232220809,0.00825,59309.0,59308.0,0.7257117]
[1724232220999,0.00825,59309.0,59308.0,0.7367117]
[1724232222563,0.00825,59309.0,59308.0,0.3628578]
[1724232223917,0.09105,59309.0,59308.0,0.3628578]
[1724232226413,0.09105,59309.0,59308.0,0.73671313]
[1724232226963,0.09105,59309.0,59308.0,0.2448578]
[1724232227205,0.166142,59309.0,59308.0,0.08085482]
[1724232227471,0.166142,59309.0,59308.0,0.04107005]
[1724232227939,0.166142,59309.0,59308.0,0.01807005]
[1724232228274,0.160642,59309.0,59308.0,0.006]
[1724232228515,0.33994025,59309.0,59308.0,0.02400867]
[1724232228859,0.36637764,59309.0,59308.0,0.013]
[1724232229680,0.36637764,59309.0,59308.0,0.007]
[1724232229899,0.36637624,59309.0,59308.0,0.001]
[1724232230311,0.36737624,59309.0,59308.0,0.002]
[1724232231030,0.3673759,59309.0,59308.0,0.002]
[1724232231302,0.37740112,59309.0,59308.0,0.002]
[1724232232575,0.3673759,59309.0,59308.0,0.002]
[1724232233376,0.34289037,59309.0,59308.0,0.002]
[1724232233527,0.36737432,59309.0,59308.0,0.002]
[1724232237703,0.34289037,59309.0,59308.0,0.002]
[1724232237906,0.3673742,59309.0,59308.0,0.002]
[1724232238326,0.20337122,59309.0,59308.0,0.002]
[1724232238990,0.09574002,59309.0,59308.0,0.002]
[1724232239199,0.01844002,59309.0,59308.0,0.002]
[1724232239409,0.00925,59309.0,59308.0,0.02128697]
[1724232239656,0.00925,59309.0,59308.0,0.31170373]
[1724232239828,0.00925,59309.0,59308.0,0.75440694]
[1724232240047,0.00825,59309.0,59308.0,0.75340694]
[1724232240273,0.00925,59309.0,59308.0,0.75540694]
[1724232240484,0.00925,59309.0,59308.0,0.78067345]
[1724232240710,0.00925,59309.0,59308.0,0.65434088]
[1724232241110,0.00825,59309.0,59308.0,0.65330641]
[1724232241312,0.00825,59309.0,59308.0,0.77947431]
[1724232241554,0.00825,59309.0,59308.0,0.78310266]
[1724232241712,0.00825,59309.0,59308.0,0.64993476]
[1724232242357,0.00825,59309.0,59308.0,0.75085968]
[1724232242534,0.00825,59309.0,59308.0,0.74985968]
[1724232242973,0.00825,59309.0,59308.0,0.75585968]
[1724232243172,0.00825,59309.0,59308.0,0.75885968]
[1724232243375,0.00825,59309.0,59308.0,0.74985968]
[1724232243784,0.00825,59309.0,59308.0,0.77085968]
[1724232244646,0.00825,59309.0,59308.0,0.29608602]
[1724232245063,0.00825,59309.0,59308.0,0.34654612]
[1724232247553,0.00825,59309.0,59308.0,0.28004612]
[1724232247946,0.00825,59309.0,59308.0,0.22958602]
[1724232248392,0.00825,59309.0,59308.0,0.30527617]
[1724232248604,0.00825,59309.0,59308.0,0.67914066]
[1724232248811,0.00825,59309.0,59308.0,0.14127319]
[1724232249017,0.00825,59309.0,59308.0,0.06558304]
[1724232249227,0.07375,59309.0,59308.0,0.06558304]
[1724232249850,0.07375,59309.0,59308.0,0.05558304]
[1724232250059,0.07375,59309.0,59308.0,0.04458304]
[1724232250488,0.07375,59309.0,59308.0,0.02028697]
[1724232250735,0.16144113,59309.0,59308.0,0.02028697]
[1724232252930,0.09594113,59309.0,59308.0,0.02028697]